[Event "Chess Festival Groningen 2023 | A"]
[Site "Groningen, Netherlands"]
[Date "2023.12.30"]
[Round "9.31"]
[White "Schuricht, Emil Frederick"]
[Black "Kazarjan, Gachatur"]
[Result "0-1"]
[TimeControl "90min/40moves + 30min + 30sec/move"]
[WhiteElo "2095"]
[BlackElo "2078"]

1. d4 f5 2. g3 e6 3. Bg2 Nf6 4. c4 Be7 5. Nf3 O-O 6. O-O d6 7. Nc3 Ne4 8. Qc2
Nxc3 9. Qxc3 a5 10. b3 Nc6 11. Bb2 Bf6 12. Rad1 Qe8 13. Qc2 e5 14. d5 Nb4 15.
Qb1 Na6 16. Ne1 Qh5 17. e3 f4 18. exf4 exf4 19. Bf3 Qg5 20. Bc1 Be5 21. Ng2 Bf5
22. Be4 Nc5 23. gxf4 Bxe4 24. Qxe4 Nxe4 25. fxg5 Rf3 26. Ne1 Rf5 27. f4 Raf8 28.
Ng2 Nxg5 29. fxg5 Rxf1+ 30. Rxf1 Bxh2+ 31. Kxh2 Rxf1 32. Bf4 b6 33. c5 bxc5 34.
Bd2 a4 35. bxa4 Ra1 36. a5 Rxa2 37. Be1 c4 38. Kg1 Ra3 39. Kf2 c3 40. Ne3 Ra2+
41. Kf3 c2 42. Bd2 Rxa5 43. Ke4 Rc5 44. Bc1 Kf7 45. Kd3 h5 46. gxh6 gxh6 47.
Nxc2 Rxd5+ 48. Ke4 Re5+ 49. Kd4 h5 50. Bf4 Ra5 51. Ke4 Kf6 52. Ne3 Ke6 53. Kd3
Ra4 54. Bg5 d5 55. Bd8 c5 56. Bb6 Ra3+ 57. Ke2 c4 58. Ng2 Ke5 59. Bc5 Ra5 60.
Bb4 Ra4 61. Bc3+ d4 62. Bd2 Ke4 63. Ne1 Ra2 64. Kd1 c3 65. Bc1 d3 66. Bg5
{[%clk 00:55:18]} Ra1+ {[%clk 00:55:14]} 0-1